[Event "Titled Tuesday Blitz July 4 Late 2023"]
[White "Przybylski, Wojciech"]
[Black "Oro, Faustino"]
[WhiteFideId "1117599"]
[BlackFideId "20000197"]
[WhiteElo "2565"]
[BlackElo "2817"]
[Result "1-0"]
[Round "7"]
[TimeControl "180+2"]
[Date "2023.07.04"]
[WhiteClock "0:00:04"]
[BlackClock "0:00:06"]
[Board "32"]

1. e4 {[%clk 0:03:00]}  c5 {[%clk 0:02:59]} 2. Nf3 {[%clk 0:02:59]}  d6 {[%clk 0:02:59]} 3. Bc4 {[%clk 0:02:57]}  Nc6 {[%clk 0:02:55]} 4. O-O {[%clk 0:02:56]}  e6 {[%clk 0:02:55]} 5. c3 {[%clk 0:02:56]}  Nf6 {[%clk 0:02:55]} 6. d3 {[%clk 0:02:55]}  Be7 {[%clk 0:02:56]} 7. a4 {[%clk 0:02:54]}  O-O {[%clk 0:02:56]} 8. Re1 {[%clk 0:02:54]}  d5 {[%clk 0:02:56]} 9. Bb3 {[%clk 0:02:51]}  d4 {[%clk 0:02:22]} 10. Na3 {[%clk 0:02:47]}  e5 {[%clk 0:02:21]} 11. h3 {[%clk 0:02:46]}  a6 {[%clk 0:02:19]} 12. Nc4 {[%clk 0:02:45]}  Qc7 {[%clk 0:02:19]} 13. a5 {[%clk 0:02:45]}  h6 {[%clk 0:02:09]} 14. Bd2 {[%clk 0:02:37]}  Rd8 {[%clk 0:02:02]} 15. Nb6 {[%clk 0:02:33]}  Rb8 {[%clk 0:02:01]} 16. cxd4 {[%clk 0:02:30]}  cxd4 {[%clk 0:01:44]} 17. Rc1 {[%clk 0:02:29]}  Be6 {[%clk 0:01:36]} 18. Bxe6 {[%clk 0:02:28]}  fxe6 {[%clk 0:01:36]} 19. Qb3 {[%clk 0:02:28]}  Kf7 {[%clk 0:01:29]} 20. Rc2 {[%clk 0:02:02]}  Nd7 {[%clk 0:01:15]} 21. Rec1 {[%clk 0:01:42]}  Nxb6 {[%clk 0:01:13]} 22. axb6 {[%clk 0:01:42]}  Qd6 {[%clk 0:01:12]} 23. Nh2 {[%clk 0:01:36]}  Rdc8 {[%clk 0:00:54]} 24. f4 {[%clk 0:01:31]}  Ke8 {[%clk 0:00:34]} 25. f5 {[%clk 0:01:19]}  Kd7 {[%clk 0:00:28]} 26. Rc5 {[%clk 0:01:09]}  Bf6 {[%clk 0:00:07]} 27. Ng4 {[%clk 0:01:06]}  Ke7 {[%clk 0:00:08]} 28. Bb4 {[%clk 0:00:51]}  Nxb4 {[%clk 0:00:03]} 29. Rxc8 {[%clk 0:00:47]}  Rxc8 {[%clk 0:00:04]} 30. Rxc8 {[%clk 0:00:46]}  Qxb6 {[%clk 0:00:04]} 31. Rc4 {[%clk 0:00:29]}  a5 {[%clk 0:00:04]} 32. fxe6 {[%clk 0:00:29]}  Qxe6 {[%clk 0:00:04]} 33. Rc7+ {[%clk 0:00:28]}  Kd6 {[%clk 0:00:04]} 34. Qxe6+ {[%clk 0:00:27]}  Kxe6 {[%clk 0:00:05]} 35. Rxb7 {[%clk 0:00:24]}  Nxd3 {[%clk 0:00:05]} 36. Rb6+ {[%clk 0:00:23]}  Kf7 {[%clk 0:00:06]} 37. Kf1 {[%clk 0:00:17]}  Nc5 {[%clk 0:00:05]} 38. Nf2 {[%clk 0:00:14]}  Bh4 {[%clk 0:00:05]} 39. Ng4 {[%clk 0:00:08]}  Bf6 {[%clk 0:00:04]} 40. Rb5 {[%clk 0:00:05]}  Nd3 {[%clk 0:00:02]} 41. Ke2 {[%clk 0:00:04]}  Nf4+ {[%clk 0:00:02]} 42. Kf3 {[%clk 0:00:05]}  Nd3 {[%clk 0:00:03]} 43. Nf2 {[%clk 0:00:04]}  Ne1+ {[%clk 0:00:03]} 44. Ke2 {[%clk 0:00:04]}  Nc2 {[%clk 0:00:04]} 45. Nd3 {[%clk 0:00:04]}  Ke6 {[%clk 0:00:04]} 46. Nc5+ {[%clk 0:00:04]}  Ke7 {[%clk 0:00:04]} 47. Nd3 {[%clk 0:00:04]}  Ke6 {[%clk 0:00:04]} 48. Rxa5 {[%clk 0:00:04]}  Ne3 {[%clk 0:00:04]} 49. Ra6+ {[%clk 0:00:05]}  Ke7 {[%clk 0:00:04]} 50. g3 {[%clk 0:00:05]}  Nc4 {[%clk 0:00:03]} 51. Ra7+ {[%clk 0:00:05]}  Ke6 {[%clk 0:00:04]} 52. b3 {[%clk 0:00:06]}  Nd6 {[%clk 0:00:04]} 53. Ra6 {[%clk 0:00:06]}  Ke7 {[%clk 0:00:04]} 54. Nc5 {[%clk 0:00:07]}  Nb5 {[%clk 0:00:04]} 55. Rb6 {[%clk 0:00:06]}  Nc3+ {[%clk 0:00:04]} 56. Kd3 {[%clk 0:00:07]}  Nd1 {[%clk 0:00:05]} 57. Re6+ {[%clk 0:00:06]}  Kf7 {[%clk 0:00:05]} 58. b4 {[%clk 0:00:06]}  Nb2+ {[%clk 0:00:05]} 59. Kd2 {[%clk 0:00:05]}  Nc4+ {[%clk 0:00:05]} 60. Kd3 {[%clk 0:00:06]}  Nb2+ {[%clk 0:00:05]} 61. Kc2 {[%clk 0:00:06]}  Nc4 {[%clk 0:00:06]} 62. Rc6 {[%clk 0:00:05]}  Ne3+ {[%clk 0:00:05]} 63. Kd3 {[%clk 0:00:06]}  Nd1 {[%clk 0:00:05]} 64. b5 {[%clk 0:00:05]}  Be7 {[%clk 0:00:06]} 65. Rc7 {[%clk 0:00:05]}  Ke8 {[%clk 0:00:05]} 66. b6 {[%clk 0:00:05]}  Nb2+ {[%clk 0:00:06]} 67. Kc2 {[%clk 0:00:05]}  Bxc5 {[%clk 0:00:05]} 68. Rxc5 {[%clk 0:00:04]}  Na4 {[%clk 0:00:05]} 69. Rc8+ {[%clk 0:00:03]}  Kd7 {[%clk 0:00:06]} 70. b7 {[%clk 0:00:04]}  Nb6 {[%clk 0:00:05]} 71. Rg8 {[%clk 0:00:04]}  Nc4 {[%clk 0:00:05]} 72. b8=Q {[%clk 0:00:03]}  Ne3+ {[%clk 0:00:06]} 73. Kd3 {[%clk 0:00:04]} 1-0


[Site "https://www.chess.com"]

[Event "Titled Tuesday Blitz July 4 Late 2023"]
[White "Kantor, Gergely"]
[Black "Kanyamarala, Tarun"]
[WhiteFideId "751499"]
[BlackFideId "45004714"]
[WhiteElo "2810"]
[BlackElo "2560"]
[Result "1-0"]
[Round "7"]
[TimeControl "180+2"]
[Date "2023.07.04"]
[WhiteClock "0:02:27"]
[BlackClock "0:01:42"]
[Board "33"]

1. e4 {[%clk 0:03:00]}  c5 {[%clk 0:02:59]} 2. Nf3 {[%clk 0:03:00]}  e6 {[%clk 0:02:58]} 3. Nc3 {[%clk 0:02:59]}  a6 {[%clk 0:02:57]} 4. g3 {[%clk 0:02:58]}  b5 {[%clk 0:02:38]} 5. Bg2 {[%clk 0:02:58]}  Bb7 {[%clk 0:02:38]} 6. d3 {[%clk 0:02:58]}  d6 {[%clk 0:02:32]} 7. O-O {[%clk 0:02:59]}  Be7 {[%clk 0:02:28]} 8. Ne1 {[%clk 0:02:43]}  Nf6 {[%clk 0:02:25]} 9. f4 {[%clk 0:02:44]}  O-O {[%clk 0:02:25]} 10. Nf3 {[%clk 0:02:44]}  Nbd7 {[%clk 0:02:24]} 11. Qe2 {[%clk 0:02:43]}  d5 {[%clk 0:02:18]} 12. e5 {[%clk 0:02:43]}  Ne8 {[%clk 0:02:16]} 13. h4 {[%clk 0:02:43]}  Qb6 {[%clk 0:02:06]} 14. Kh2 {[%clk 0:02:41]}  Nc7 {[%clk 0:02:06]} 15. h5 {[%clk 0:02:39]}  h6 {[%clk 0:02:05]} 16. Bh3 {[%clk 0:02:39]}  Rfc8 {[%clk 0:02:03]} 17. g4 {[%clk 0:02:36]}  d4 {[%clk 0:01:54]} 18. Ne4 {[%clk 0:02:34]}  Nd5 {[%clk 0:01:53]} 19. g5 {[%clk 0:02:31]}  Bf8 {[%clk 0:01:50]} 20. gxh6 {[%clk 0:02:29]}  gxh6 {[%clk 0:01:50]} 21. Rg1+ {[%clk 0:02:29]}  Kh8 {[%clk 0:01:42]} 22. Qg2 {[%clk 0:02:27]} 1-0


[Site "https://www.chess.com"]

[Event "Titled Tuesday Blitz July 4 Late 2023"]
[White "Stribuk, Artiom"]
[Black "Bruedigam, Martin"]
[WhiteFideId "13515659"]
[BlackFideId "24608033"]
[WhiteElo "2801"]
[BlackElo "2559"]
[Result "1-0"]
[Round "7"]
[TimeControl "180+2"]
[Date "2023.07.04"]
[WhiteClock "0:00:07"]
[BlackClock "0:00:00"]
[Board "34"]

1. d4 {[%clk 0:02:52]}  d5 {[%clk 0:02:57]} 2. c4 {[%clk 0:02:52]}  c6 {[%clk 0:02:58]} 3. Nf3 {[%clk 0:02:51]}  Nf6 {[%clk 0:02:57]} 4. g3 {[%clk 0:02:51]}  Bf5 {[%clk 0:02:53]} 5. Nc3 {[%clk 0:02:49]}  e6 {[%clk 0:02:52]} 6. Qb3 {[%clk 0:02:50]}  Qb6 {[%clk 0:02:50]} 7. c5 {[%clk 0:02:50]}  Qc7 {[%clk 0:02:45]} 8. Bf4 {[%clk 0:02:50]}  Qc8 {[%clk 0:02:45]} 9. Nh4 {[%clk 0:02:50]}  Nbd7 {[%clk 0:02:42]} 10. Nxf5 {[%clk 0:02:46]}  exf5 {[%clk 0:02:43]} 11. Bg2 {[%clk 0:02:46]}  Be7 {[%clk 0:02:41]} 12. O-O {[%clk 0:02:46]}  O-O {[%clk 0:02:41]} 13. Qc2 {[%clk 0:02:46]}  g6 {[%clk 0:02:41]} 14. b4 {[%clk 0:02:47]}  a6 {[%clk 0:02:38]} 15. a4 {[%clk 0:02:46]}  Bd8 {[%clk 0:02:28]} 16. b5 {[%clk 0:02:42]}  Bc7 {[%clk 0:02:24]} 17. bxc6 {[%clk 0:02:39]}  bxc6 {[%clk 0:02:23]} 18. Bh6 {[%clk 0:02:00]}  Re8 {[%clk 0:02:22]} 19. a5 {[%clk 0:01:59]}  Rb8 {[%clk 0:01:59]} 20. Qa4 {[%clk 0:01:56]}  Bd8 {[%clk 0:01:48]} 21. Bf4 {[%clk 0:01:50]}  Rb2 {[%clk 0:01:43]} 22. Rab1 {[%clk 0:01:45]}  Rxb1 {[%clk 0:01:42]} 23. Rxb1 {[%clk 0:01:44]}  Nf8 {[%clk 0:01:38]} 24. Rb8 {[%clk 0:01:36]}  Qd7 {[%clk 0:01:35]} 25. e3 {[%clk 0:01:07]}  Ne6 {[%clk 0:01:18]} 26. Bd6 {[%clk 0:00:58]}  f4 {[%clk 0:00:51]} 27. Bxf4 {[%clk 0:00:47]}  Nxf4 {[%clk 0:00:47]} 28. gxf4 {[%clk 0:00:48]}  h6 {[%clk 0:00:35]} 29. Ne2 {[%clk 0:00:41]}  Kh8 {[%clk 0:00:24]} 30. Ng3 {[%clk 0:00:40]}  h5 {[%clk 0:00:21]} 31. h3 {[%clk 0:00:36]}  h4 {[%clk 0:00:20]} 32. Nf1 {[%clk 0:00:34]}  Rg8 {[%clk 0:00:18]} 33. Nh2 {[%clk 0:00:19]}  g5 {[%clk 0:00:13]} 34. fxg5 {[%clk 0:00:18]}  Rxg5 {[%clk 0:00:14]} 35. Nf3 {[%clk 0:00:19]}  Rg8 {[%clk 0:00:10]} 36. Kf1 {[%clk 0:00:19]}  Ne4 {[%clk 0:00:09]} 37. Ne5 {[%clk 0:00:12]}  Qf5 {[%clk 0:00:09]} 38. Bxe4 {[%clk 0:00:11]}  Qxe4 {[%clk 0:00:00]} 39. Rxd8 {[%clk 0:00:07]} 1-0


[Site "https://www.chess.com"]

[Event "Titled Tuesday Blitz July 4 Late 2023"]
[White "Leitao, Rafael"]
[Black "Bilan, Danila"]
[WhiteFideId "2101246"]
[BlackFideId "24161918"]
[WhiteElo "2782"]
[BlackElo "2532"]
[Result "1-0"]
[Round "7"]
[TimeControl "180+2"]
[Date "2023.07.04"]
[WhiteClock "0:00:17"]
[BlackClock "0:00:00"]
[Board "36"]

1. c4 {[%clk 0:03:00]}  c6 {[%clk 0:02:41]} 2. g3 {[%clk 0:02:58]}  d5 {[%clk 0:02:42]} 3. Nf3 {[%clk 0:02:58]}  Nf6 {[%clk 0:02:42]} 4. Bg2 {[%clk 0:02:57]}  Bf5 {[%clk 0:02:43]} 5. Qb3 {[%clk 0:02:57]}  Qb6 {[%clk 0:02:41]} 6. d3 {[%clk 0:02:55]}  e6 {[%clk 0:02:39]} 7. Be3 {[%clk 0:02:50]}  Qxb3 {[%clk 0:02:31]} 8. axb3 {[%clk 0:02:49]}  a6 {[%clk 0:02:28]} 9. Bd4 {[%clk 0:02:49]}  Nbd7 {[%clk 0:02:23]} 10. Bc3 {[%clk 0:02:48]}  h6 {[%clk 0:02:17]} 11. Nbd2 {[%clk 0:02:48]}  Be7 {[%clk 0:02:13]} 12. b4 {[%clk 0:02:43]}  O-O {[%clk 0:02:07]} 13. O-O {[%clk 0:02:32]}  Rfd8 {[%clk 0:01:54]} 14. Nd4 {[%clk 0:02:09]}  Bg6 {[%clk 0:01:48]} 15. N4f3 {[%clk 0:01:30]}  Rac8 {[%clk 0:01:35]} 16. Nb3 {[%clk 0:01:22]}  c5 {[%clk 0:01:21]} 17. bxc5 {[%clk 0:01:20]}  Nxc5 {[%clk 0:01:22]} 18. Nxc5 {[%clk 0:01:14]}  Bxc5 {[%clk 0:01:18]} 19. Ne5 {[%clk 0:01:06]}  Bf5 {[%clk 0:01:06]} 20. Rfe1 {[%clk 0:00:54]}  b5 {[%clk 0:00:38]} 21. Rxa6 {[%clk 0:00:42]}  dxc4 {[%clk 0:00:31]} 22. Nc6 {[%clk 0:00:41]}  Re8 {[%clk 0:00:24]} 23. d4 {[%clk 0:00:40]}  Bf8 {[%clk 0:00:18]} 24. e4 {[%clk 0:00:38]}  Bg6 {[%clk 0:00:12]} 25. d5 {[%clk 0:00:33]}  exd5 {[%clk 0:00:11]} 26. exd5 {[%clk 0:00:34]}  Rxe1+ {[%clk 0:00:10]} 27. Bxe1 {[%clk 0:00:34]}  Bc5 {[%clk 0:00:10]} 28. Bb4 {[%clk 0:00:28]}  Bxb4 {[%clk 0:00:07]} 29. Nxb4 {[%clk 0:00:29]}  Be4 {[%clk 0:00:07]} 30. d6 {[%clk 0:00:26]}  Bxg2 {[%clk 0:00:07]} 31. Kxg2 {[%clk 0:00:26]}  Rd8 {[%clk 0:00:07]} 32. Nc6 {[%clk 0:00:25]}  Rd7 {[%clk 0:00:03]} 33. Ne5 {[%clk 0:00:25]}  Rd8 {[%clk 0:00:03]} 34. d7 {[%clk 0:00:21]}  Kf8 {[%clk 0:00:01]} 35. Ra7 {[%clk 0:00:17]}  Ke7 {[%clk 0:00:02]} 36. Nc6+ {[%clk 0:00:17]}  Kd6 {[%clk 0:00:00]} 37. Nxd8 {[%clk 0:00:17]} 1-0


[Site "https://www.chess.com"]

[Event "Titled Tuesday Blitz July 4 Late 2023"]
[White "Gorovets, Andrey"]
[Black "Mattheii"]
[WhiteFideId "13504037"]
[WhiteElo "2755"]
[BlackElo "2522"]
[Result "0-1"]
[Round "7"]
[TimeControl "180+2"]
[Date "2023.07.04"]
[WhiteClock "0:01:08"]
[BlackClock "0:00:37"]
[Board "38"]

1. Nf3 {[%clk 0:02:57]}  d5 {[%clk 0:02:58]} 2. e3 {[%clk 0:02:57]}  Nf6 {[%clk 0:02:58]} 3. c4 {[%clk 0:02:58]}  e6 {[%clk 0:02:57]} 4. b3 {[%clk 0:02:58]}  Be7 {[%clk 0:02:55]} 5. Bb2 {[%clk 0:02:58]}  O-O {[%clk 0:02:56]} 6. Nc3 {[%clk 0:02:59]}  c5 {[%clk 0:02:54]} 7. cxd5 {[%clk 0:02:59]}  Nxd5 {[%clk 0:02:54]} 8. h4 {[%clk 0:02:45]}  Nc6 {[%clk 0:02:43]} 9. Qb1 {[%clk 0:02:44]}  f5 {[%clk 0:02:29]} 10. Be2 {[%clk 0:02:35]}  Bf6 {[%clk 0:02:23]} 11. Nxd5 {[%clk 0:02:28]}  exd5 {[%clk 0:02:17]} 12. Ng5 {[%clk 0:02:19]}  h6 {[%clk 0:01:54]} 13. Nf3 {[%clk 0:02:16]}  Be6 {[%clk 0:01:45]} 14. Bd3 {[%clk 0:02:16]}  Bxb2 {[%clk 0:01:39]} 15. Qxb2 {[%clk 0:02:17]}  f4 {[%clk 0:01:31]} 16. Rc1 {[%clk 0:02:11]}  b6 {[%clk 0:01:30]} 17. a3 {[%clk 0:02:12]}  fxe3 {[%clk 0:01:29]} 18. dxe3 {[%clk 0:02:13]}  Bg4 {[%clk 0:01:23]} 19. Be2 {[%clk 0:02:08]}  Qd6 {[%clk 0:01:15]} 20. Rd1 {[%clk 0:02:08]}  Kh8 {[%clk 0:01:11]} 21. h5 {[%clk 0:02:08]}  Rae8 {[%clk 0:01:10]} 22. Nh4 {[%clk 0:02:06]}  Bf5 {[%clk 0:01:01]} 23. Nxf5 {[%clk 0:01:47]}  Rxf5 {[%clk 0:01:01]} 24. Qc2 {[%clk 0:01:45]}  Rg5 {[%clk 0:00:59]} 25. O-O {[%clk 0:01:38]}  d4 {[%clk 0:00:56]} 26. Bb5 {[%clk 0:01:22]}  Rxh5 {[%clk 0:00:48]} 27. g3 {[%clk 0:01:08]}  Qd5 {[%clk 0:00:37]} 0-1


[Site "https://www.chess.com"]

[Event "Titled Tuesday Blitz July 4 Late 2023"]
[White "Ghazarian, Kirk"]
[Black "Dixit, Nikhil"]
[WhiteFideId "30908604"]
[BlackFideId "5059534"]
[WhiteElo "2746"]
[BlackElo "2514"]
[Result "1-0"]
[Round "7"]
[TimeControl "180+2"]
[Date "2023.07.04"]
[WhiteClock "0:01:00"]
[BlackClock "0:00:16"]
[Board "39"]

1. e4 {[%clk 0:03:00]}  c5 {[%clk 0:02:48]} 2. b3 {[%clk 0:03:00]}  e5 {[%clk 0:02:47]} 3. Bb2 {[%clk 0:03:01]}  Nc6 {[%clk 0:02:47]} 4. Bc4 {[%clk 0:02:59]}  d6 {[%clk 0:02:44]} 5. Ne2 {[%clk 0:02:59]}  g5 {[%clk 0:02:41]} 6. O-O {[%clk 0:02:57]}  h5 {[%clk 0:02:41]} 7. c3 {[%clk 0:02:57]}  Bg7 {[%clk 0:02:37]} 8. d4 {[%clk 0:02:56]}  cxd4 {[%clk 0:02:33]} 9. cxd4 {[%clk 0:02:57]}  Nge7 {[%clk 0:02:33]} 10. Na3 {[%clk 0:02:39]}  a6 {[%clk 0:02:32]} 11. d5 {[%clk 0:02:35]}  Nb8 {[%clk 0:02:30]} 12. Ng3 {[%clk 0:02:34]}  Bg4 {[%clk 0:02:22]} 13. Be2 {[%clk 0:02:34]}  Bxe2 {[%clk 0:01:42]} 14. Qxe2 {[%clk 0:02:34]}  h4 {[%clk 0:01:43]} 15. Nh5 {[%clk 0:02:32]}  Kf8 {[%clk 0:01:40]} 16. Nc4 {[%clk 0:02:18]}  b5 {[%clk 0:01:32]} 17. Ne3 {[%clk 0:02:17]}  Nd7 {[%clk 0:01:10]} 18. Nxg7 {[%clk 0:02:16]}  Kxg7 {[%clk 0:01:09]} 19. f4 {[%clk 0:02:15]}  gxf4 {[%clk 0:01:05]} 20. Rxf4 {[%clk 0:02:14]}  Ng6 {[%clk 0:01:05]} 21. Rf2 {[%clk 0:02:07]}  Qg5 {[%clk 0:00:57]} 22. Raf1 {[%clk 0:02:05]}  Raf8 {[%clk 0:00:55]} 23. Rf5 {[%clk 0:02:00]}  Qh6 {[%clk 0:00:51]} 24. Rxe5 {[%clk 0:01:52]}  Ngxe5 {[%clk 0:00:32]} 25. Nf5+ {[%clk 0:01:52]}  Kg8 {[%clk 0:00:32]} 26. Nxh6+ {[%clk 0:01:51]}  Rxh6 {[%clk 0:00:33]} 27. Rc1 {[%clk 0:01:46]}  Rg6 {[%clk 0:00:28]} 28. Kh1 {[%clk 0:01:39]}  f5 {[%clk 0:00:27]} 29. exf5 {[%clk 0:01:33]}  Rxf5 {[%clk 0:00:28]} 30. Rf1 {[%clk 0:01:27]}  Rxf1+ {[%clk 0:00:25]} 31. Qxf1 {[%clk 0:01:28]}  Rf6 {[%clk 0:00:25]} 32. Qe2 {[%clk 0:01:24]}  Kf8 {[%clk 0:00:21]} 33. h3 {[%clk 0:01:22]}  Rf7 {[%clk 0:00:18]} 34. Kh2 {[%clk 0:01:10]}  Ng6 {[%clk 0:00:16]} 35. Qh5 {[%clk 0:01:07]}  Nde5 {[%clk 0:00:15]} 36. Bxe5 {[%clk 0:01:06]}  Nxe5 {[%clk 0:00:16]} 37. Qh8+ {[%clk 0:01:05]}  Ke7 {[%clk 0:00:16]} 38. Qxh4+ {[%clk 0:01:06]}  Kd7 {[%clk 0:00:16]} 39. Qd4 {[%clk 0:01:04]}  a5 {[%clk 0:00:16]} 40. Qa7+ {[%clk 0:01:03]}  Ke8 {[%clk 0:00:17]} 41. Qxa5 {[%clk 0:01:01]}  Kf8 {[%clk 0:00:17]} 42. Qxb5 {[%clk 0:01:00]}  Rf2 {[%clk 0:00:17]} 43. Qb8+ {[%clk 0:00:59]}  Kf7 {[%clk 0:00:16]} 44. Qa7+ {[%clk 0:01:00]} 1-0


[Site "https://www.chess.com"]

[Event "Titled Tuesday Blitz July 4 Late 2023"]
[White "only_strong_moves"]
[Black "Shuvalova, Polina"]
[BlackFideId "24171760"]
[WhiteElo "2507"]
[BlackElo "2691"]
[Result "1-0"]
[Round "7"]
[TimeControl "180+2"]
[Date "2023.07.04"]
[WhiteClock "0:00:12"]
[BlackClock "0:00:04"]
[Board "41"]

1. d4 {[%clk 0:03:00]}  Nf6 {[%clk 0:02:56]} 2. c4 {[%clk 0:03:01]}  d6 {[%clk 0:02:50]} 3. Nc3 {[%clk 0:03:00]}  Nbd7 {[%clk 0:02:50]} 4. e4 {[%clk 0:03:00]}  e5 {[%clk 0:02:51]} 5. Nf3 {[%clk 0:03:00]}  Be7 {[%clk 0:02:50]} 6. Be2 {[%clk 0:02:59]}  O-O {[%clk 0:02:51]} 7. Be3 {[%clk 0:02:59]}  c6 {[%clk 0:02:50]} 8. h3 {[%clk 0:02:57]}  Qc7 {[%clk 0:02:49]} 9. O-O {[%clk 0:02:57]}  Re8 {[%clk 0:02:50]} 10. d5 {[%clk 0:02:54]}  a6 {[%clk 0:02:48]} 11. a4 {[%clk 0:02:49]}  a5 {[%clk 0:02:43]} 12. Rc1 {[%clk 0:02:46]}  Qb8 {[%clk 0:02:37]} 13. Nd2 {[%clk 0:02:43]}  Bd8 {[%clk 0:02:36]} 14. Qb3 {[%clk 0:02:35]}  Nc5 {[%clk 0:02:08]} 15. Qa3 {[%clk 0:02:30]}  Bb6 {[%clk 0:02:05]} 16. Kh2 {[%clk 0:02:12]}  Qa7 {[%clk 0:02:01]} 17. g4 {[%clk 0:01:39]}  Nfd7 {[%clk 0:01:55]} 18. Rcd1 {[%clk 0:01:24]}  Nf8 {[%clk 0:01:54]} 19. f4 {[%clk 0:01:16]}  exf4 {[%clk 0:01:50]} 20. Bxf4 {[%clk 0:01:17]}  Bc7 {[%clk 0:01:40]} 21. Bg3 {[%clk 0:01:02]}  Qb6 {[%clk 0:01:31]} 22. e5 {[%clk 0:00:54]}  dxe5 {[%clk 0:01:22]} 23. Nde4 {[%clk 0:00:51]}  Nxe4 {[%clk 0:01:20]} 24. Nxe4 {[%clk 0:00:52]}  cxd5 {[%clk 0:01:19]} 25. cxd5 {[%clk 0:00:53]}  Qb4 {[%clk 0:01:08]} 26. Qf3 {[%clk 0:00:51]}  f6 {[%clk 0:00:49]} 27. d6 {[%clk 0:00:45]}  Bb6 {[%clk 0:00:49]} 28. Nxf6+ {[%clk 0:00:27]}  gxf6 {[%clk 0:00:48]} 29. Qxf6 {[%clk 0:00:28]}  Qb3 {[%clk 0:00:35]} 30. Rc1 {[%clk 0:00:26]}  Qxb2 {[%clk 0:00:08]} 31. Qf7+ {[%clk 0:00:21]}  Kh8 {[%clk 0:00:08]} 32. Qxe8 {[%clk 0:00:15]}  Be6 {[%clk 0:00:07]} 33. Rxf8+ {[%clk 0:00:12]}  Kg7 {[%clk 0:00:07]} 34. Qe7+ {[%clk 0:00:12]}  Kg6 {[%clk 0:00:03]} 35. Qxe6+ {[%clk 0:00:12]}  Kg7 {[%clk 0:00:04]} 36. Qf6# {[%clk 0:00:12]} 1-0


[Site "https://www.chess.com"]

[Event "Titled Tuesday Blitz July 4 Late 2023"]
[White "Molenda, Marcin"]
[Black "Matinian, Nikita"]
[WhiteFideId "1173065"]
[BlackFideId "24129100"]
[WhiteElo "2502"]
[BlackElo "2687"]
[Result "0-1"]
[Round "7"]
[TimeControl "180+2"]
[Date "2023.07.04"]
[WhiteClock "0:00:00"]
[BlackClock "0:00:29"]
[Board "42"]

1. e4 {[%clk 0:02:57]}  c5 {[%clk 0:02:59]} 2. Nf3 {[%clk 0:02:56]}  e6 {[%clk 0:02:59]} 3. c3 {[%clk 0:02:55]}  d5 {[%clk 0:02:57]} 4. exd5 {[%clk 0:02:56]}  Qxd5 {[%clk 0:02:58]} 5. d4 {[%clk 0:02:57]}  Nf6 {[%clk 0:02:58]} 6. Na3 {[%clk 0:02:57]}  a6 {[%clk 0:02:54]} 7. Nc4 {[%clk 0:02:56]}  Nbd7 {[%clk 0:02:53]} 8. Bd3 {[%clk 0:02:48]}  b5 {[%clk 0:02:47]} 9. Nce5 {[%clk 0:02:44]}  Bb7 {[%clk 0:02:42]} 10. O-O {[%clk 0:02:43]}  Nxe5 {[%clk 0:02:38]} 11. dxe5 {[%clk 0:02:43]}  Nd7 {[%clk 0:02:27]} 12. Re1 {[%clk 0:02:42]}  Be7 {[%clk 0:02:16]} 13. Bf4 {[%clk 0:02:34]}  Rd8 {[%clk 0:02:11]} 14. Qc2 {[%clk 0:02:27]}  Nxe5 {[%clk 0:01:59]} 15. Be4 {[%clk 0:02:16]}  Nxf3+ {[%clk 0:01:55]} 16. Bxf3 {[%clk 0:02:16]}  Qd7 {[%clk 0:01:54]} 17. Rad1 {[%clk 0:02:15]}  Qc8 {[%clk 0:01:52]} 18. Rxd8+ {[%clk 0:02:14]}  Bxd8 {[%clk 0:01:52]} 19. Bxb7 {[%clk 0:01:57]}  Qxb7 {[%clk 0:01:53]} 20. Bd6 {[%clk 0:01:57]}  Be7 {[%clk 0:01:52]} 21. Rd1 {[%clk 0:01:53]}  Bxd6 {[%clk 0:01:45]} 22. Rxd6 {[%clk 0:01:53]}  Ke7 {[%clk 0:01:35]} 23. Qd2 {[%clk 0:01:47]}  f6 {[%clk 0:01:31]} 24. g3 {[%clk 0:01:16]}  Rc8 {[%clk 0:01:31]} 25. Rd3 {[%clk 0:01:10]}  Qc7 {[%clk 0:01:27]} 26. Qe3 {[%clk 0:01:08]}  c4 {[%clk 0:01:21]} 27. Rd4 {[%clk 0:01:06]}  e5 {[%clk 0:01:19]} 28. Rh4 {[%clk 0:01:04]}  h6 {[%clk 0:01:18]} 29. Qe4 {[%clk 0:00:54]}  Kf8 {[%clk 0:00:57]} 30. Qh7 {[%clk 0:00:50]}  Qf7 {[%clk 0:00:57]} 31. Rg4 {[%clk 0:00:39]}  Rd8 {[%clk 0:00:49]} 32. Qf5 {[%clk 0:00:37]}  Rd1+ {[%clk 0:00:46]} 33. Kg2 {[%clk 0:00:37]}  Qb7+ {[%clk 0:00:46]} 34. Kh3 {[%clk 0:00:37]}  Qd7 {[%clk 0:00:47]} 35. Qg6 {[%clk 0:00:18]}  Rd2 {[%clk 0:00:38]} 36. f4 {[%clk 0:00:16]}  exf4 {[%clk 0:00:30]} 37. Qh7 {[%clk 0:00:06]}  Rxh2+ {[%clk 0:00:30]} 38. Kxh2 {[%clk 0:00:05]}  Qxg4 {[%clk 0:00:31]} 39. gxf4 {[%clk 0:00:03]}  Qxf4+ {[%clk 0:00:30]} 40. Kg2 {[%clk 0:00:04]}  Qg5+ {[%clk 0:00:30]} 41. Kf2 {[%clk 0:00:04]}  Kf7 {[%clk 0:00:30]} 42. Qh8 {[%clk 0:00:04]}  Qf4+ {[%clk 0:00:30]} 43. Kg2 {[%clk 0:00:04]}  Qe4+ {[%clk 0:00:30]} 44. Kh2 {[%clk 0:00:05]}  Qc2+ {[%clk 0:00:29]} 45. Kh1 {[%clk 0:00:04]}  Qb1+ {[%clk 0:00:29]} 46. Kh2 {[%clk 0:00:04]}  Qxb2+ {[%clk 0:00:29]} 47. Kh1 {[%clk 0:00:05]}  Qa1+ {[%clk 0:00:29]} 48. Kh2 {[%clk 0:00:04]}  Qxa2+ {[%clk 0:00:30]} 49. Kh1 {[%clk 0:00:05]}  Qa1+ {[%clk 0:00:30]} 50. Kg2 {[%clk 0:00:06]}  Qxc3 {[%clk 0:00:30]} 51. Qc8 {[%clk 0:00:06]}  Qd2+ {[%clk 0:00:29]} 52. Kh1 {[%clk 0:00:05]}  Qd6 {[%clk 0:00:29]} 53. Qb7+ {[%clk 0:00:00]}  Kg6 {[%clk 0:00:29]} 0-1


[Site "https://www.chess.com"]